[Event "Live Chess"]
[Site "Chess.com"]
[Date "2024.06.01"]
[Round "-"]
[White "Yarigo"]
[Black "vincents82"]
[Result "0-1"]
[WhiteElo "2383"]
[BlackElo "2155"]
[TimeControl "300"]
[EndTime "10:45:14 PDT"]
[Termination "vincents82 won on time"]

1. d4 {[%clk 0:04:56.1]} 1... d5 {[%clk 0:04:55.7]} 2. Nf3 {[%clk 0:04:55.5]}
2... Nf6 {[%clk 0:04:54.2]} 3. Bf4 {[%clk 0:04:53.6]} 3... c6 {[%clk 0:04:51.5]}
4. e3 {[%clk 0:04:52.8]} 4... Bf5 {[%clk 0:04:50.4]} 5. Bd3 {[%clk 0:04:50.1]}
5... Bxd3 {[%clk 0:04:49.2]} 6. Qxd3 {[%clk 0:04:48.6]} 6... e6 {[%clk
0:04:48.4]} 7. O-O {[%clk 0:04:44.9]} 7... Nbd7 {[%clk 0:04:47]} 8. c4 {[%clk
0:04:41.9]} 8... Be7 {[%clk 0:04:44.9]} 9. Nc3 {[%clk 0:04:40.1]} 9... O-O
{[%clk 0:04:41]} 10. e4 {[%clk 0:04:38.9]} 10... dxe4 {[%clk 0:04:39.7]} 11.
Nxe4 {[%clk 0:04:38.2]} 11... Nxe4 {[%clk 0:04:38.8]} 12. Qxe4 {[%clk
0:04:37.6]} 12... Nf6 {[%clk 0:04:37.9]} 13. Qe2 {[%clk 0:04:36.1]} 13... Bd6
{[%clk 0:04:36.4]} 14. Be5 {[%clk 0:04:15.8]} 14... Qc7 {[%clk 0:04:29.1]} 15.
Rad1 {[%clk 0:04:03.9]} 15... Nd7 {[%clk 0:04:24.7]} 16. Bxd6 {[%clk 0:03:58.9]}
16... Qxd6 {[%clk 0:04:23.2]} 17. Rd3 {[%clk 0:03:58.4]} 17... Rfe8 {[%clk
0:04:21.2]} 18. Rfd1 {[%clk 0:03:56.6]} 18... Qc7 {[%clk 0:04:18.4]} 19. h4
{[%clk 0:03:44.4]} 19... e5 {[%clk 0:04:14.6]} 20. dxe5 {[%clk 0:03:37.8]} 20...
Nxe5 {[%clk 0:04:13]} 21. Nxe5 {[%clk 0:03:34.8]} 21... Rxe5 {[%clk 0:04:11.2]}
22. Qxe5 {[%clk 0:03:20.4]} 22... Qxe5 {[%clk 0:04:09.1]} 23. Rd8+ {[%clk
0:03:19.9]} 23... Qe8 {[%clk 0:04:07.8]} 24. Rxe8+ {[%clk 0:03:18.8]} 24... Rxe8
{[%clk 0:04:07.1]} 25. Rd7 {[%clk 0:03:09.8]} 25... Rb8 {[%clk 0:04:05.4]} 26.
f4 {[%clk 0:03:02.5]} 26... g6 {[%clk 0:04:03.7]} 27. g4 {[%clk 0:02:56.2]}
27... Kf8 {[%clk 0:03:42.6]} 28. Kf2 {[%clk 0:02:53.3]} 28... b5 {[%clk
0:03:39.3]} 29. c5 {[%clk 0:02:48.2]} 29... b4 {[%clk 0:03:03.9]} 30. Ke3 {[%clk
0:02:33.8]} 30... a5 {[%clk 0:02:38.4]} 31. Kd3 {[%clk 0:02:21.3]} 31... Ke8
{[%clk 0:02:31.1]} 32. Rc7 {[%clk 0:02:17.9]} 32... Rd8+ {[%clk 0:02:30.3]} 33.
Kc4 {[%clk 0:02:13.2]} 33... Rd2 {[%clk 0:02:29]} 34. Rxc6 {[%clk 0:01:44.6]}
34... Rxb2 {[%clk 0:02:26.3]} 35. Rb6 {[%clk 0:01:09.3]} 35... Rxa2 {[%clk
0:02:20]} 36. c6 {[%clk 0:01:08.1]} 36... Rc2+ {[%clk 0:02:11.9]} 37. Kd5 {[%clk
0:01:04.3]} 37... Kd8 {[%clk 0:01:52.2]} 38. Rb8+ {[%clk 0:00:41.5]} 38... Kc7
{[%clk 0:01:50.1]} 39. Rb7+ {[%clk 0:00:40.8]} 39... Kc8 {[%clk 0:01:49.5]} 40.
f5 {[%clk 0:00:21.7]} 40... Rc3 {[%clk 0:01:22.4]} 41. Rxf7 {[%clk 0:00:17]}
41... b3 {[%clk 0:01:13.9]} 42. Rb7 {[%clk 0:00:16.3]} 42... gxf5 {[%clk
0:01:11.1]} 43. gxf5 {[%clk 0:00:11.3]} 43... a4 {[%clk 0:01:06.1]} 44. f6
{[%clk 0:00:10.8]} 44... Rf3 {[%clk 0:01:04.9]} 45. f7 {[%clk 0:00:08.9]} 45...
a3 {[%clk 0:01:01.3]} 46. Rxb3 {[%clk 0:00:07.2]} 46... Rxf7 {[%clk 0:00:58.2]}
47. Rxa3 {[%clk 0:00:05.7]} 47... Rf4 {[%clk 0:00:52.9]} 48. Ra8+ {[%clk
0:00:01.9]} 48... Kc7 {[%clk 0:00:52]} 49. Ra7+ {[%clk 0:00:01.5]} 49... Kc8
{[%clk 0:00:50.3]} 0-1

[Event "Live Chess"]
[Site "Chess.com"]
[Date "2024.06.01"]
[Round "-"]
[White "RuslanChessN"]
[Black "SirGerhard"]
[Result "0-1"]
[WhiteElo "1944"]
[BlackElo "2771"]
[TimeControl "300"]
[EndTime "10:45:18 PDT"]
[Termination "SirGerhard won by resignation"]

1. d4 {[%clk 0:04:57.2]} 1... Nf6 {[%clk 0:04:58.9]} 2. c4 {[%clk 0:04:56.9]}
2... e6 {[%clk 0:04:57.6]} 3. Nc3 {[%clk 0:04:56.5]} 3... Bb4 {[%clk 0:04:56.6]}
4. Qc2 {[%clk 0:04:55]} 4... O-O {[%clk 0:04:55.8]} 5. e4 {[%clk 0:04:53.9]}
5... c5 {[%clk 0:04:53.9]} 6. a3 {[%clk 0:04:43.8]} 6... Ba5 {[%clk 0:04:45.4]}
7. b4 {[%clk 0:04:38.9]} 7... cxb4 {[%clk 0:04:42.9]} 8. axb4 {[%clk 0:04:38.8]}
8... Bxb4 {[%clk 0:04:41.7]} 9. Bd3 {[%clk 0:04:37.4]} 9... Nc6 {[%clk
0:04:26.7]} 10. Nf3 {[%clk 0:04:30.1]} 10... d6 {[%clk 0:04:25.7]} 11. e5 {[%clk
0:04:24]} 11... dxe5 {[%clk 0:04:24.8]} 12. dxe5 {[%clk 0:04:23.1]} 12... Nxe5
{[%clk 0:04:23.4]} 13. Nxe5 {[%clk 0:04:20.8]} 13... Qd4 {[%clk 0:04:22.4]} 14.
Bb2 {[%clk 0:03:46.6]} 14... Qxe5+ {[%clk 0:04:20.4]} 15. Be2 {[%clk 0:03:44.7]}
15... Qf5 {[%clk 0:04:13.7]} 16. Bd3 {[%clk 0:03:41]} 16... Qe5+ {[%clk
0:03:33.3]} 17. Be2 {[%clk 0:03:38.3]} 17... Ne4 {[%clk 0:03:28.9]} 0-1

[Event "Live Chess"]
[Site "Chess.com"]
[Date "2024.06.01"]
[Round "-"]
[White "matt1979"]
[Black "viktorskliarov"]
[Result "0-1"]
[WhiteElo "1363"]
[BlackElo "2643"]
[TimeControl "300"]
[EndTime "10:45:18 PDT"]
[Termination "viktorskliarov won by resignation"]

1. f4 {[%clk 0:04:58.5]} 1... g6 {[%clk 0:04:55.2]} 2. Nf3 {[%clk 0:04:56.8]}
2... Bg7 {[%clk 0:04:54.7]} 3. e3 {[%clk 0:04:54.3]} 3... d6 {[%clk 0:04:53.9]}
4. Nc3 {[%clk 0:04:45.8]} 4... Nd7 {[%clk 0:04:52.4]} 5. e4 {[%clk 0:04:43.7]}
5... c5 {[%clk 0:04:49.8]} 6. d3 {[%clk 0:04:42.5]} 6... Rb8 {[%clk 0:04:47.6]}
7. Be2 {[%clk 0:04:41.6]} 7... b5 {[%clk 0:04:46.8]} 8. O-O {[%clk 0:04:41.1]}
8... e6 {[%clk 0:04:45]} 9. Bd2 {[%clk 0:04:36.5]} 9... b4 {[%clk 0:04:43.6]}
10. Nb1 {[%clk 0:04:33.9]} 10... Bxb2 {[%clk 0:04:41.7]} 11. c3 {[%clk
0:04:25.8]} 11... Bxa1 {[%clk 0:04:39.7]} 0-1

[Event "Live Chess"]
[Site "Chess.com"]
[Date "2024.06.01"]
[Round "-"]
[White "Mikhail_Golubev"]
[Black "viktor_forever1994"]
[Result "1-0"]
[WhiteElo "2604"]
[BlackElo "1392"]
[TimeControl "300"]
[EndTime "10:45:21 PDT"]
[Termination "Mikhail_Golubev won by checkmate"]

1. e4 {[%clk 0:04:55.2]} 1... e5 {[%clk 0:04:58.7]} 2. Nf3 {[%clk 0:04:52.5]}
2... Nc6 {[%clk 0:04:57.6]} 3. Bc4 {[%clk 0:04:51.8]} 3... Bc5 {[%clk
0:04:55.2]} 4. c3 {[%clk 0:04:50.4]} 4... h6 {[%clk 0:04:52.6]} 5. d4 {[%clk
0:04:48.1]} 5... exd4 {[%clk 0:04:51.4]} 6. cxd4 {[%clk 0:04:47.7]} 6... Bb4+
{[%clk 0:04:50.5]} 7. Nc3 {[%clk 0:04:43]} 7... d6 {[%clk 0:04:47.8]} 8. O-O
{[%clk 0:04:34.5]} 8... Bg4 {[%clk 0:04:46]} 9. d5 {[%clk 0:04:00.7]} 9... Ne5
{[%clk 0:04:33.2]} 10. Qa4+ {[%clk 0:03:56.9]} 10... Kf8 {[%clk 0:04:07.4]} 11.
Qxb4 {[%clk 0:03:51.8]} 11... Bxf3 {[%clk 0:04:03.4]} 12. gxf3 {[%clk
0:03:44.3]} 12... Qg5+ {[%clk 0:03:54.3]} 13. Bxg5 {[%clk 0:03:41.9]} 13...
Nxf3+ {[%clk 0:03:53.1]} 14. Kg2 {[%clk 0:03:39.1]} 14... Nxg5 {[%clk 0:03:53]}
15. Qxb7 {[%clk 0:03:36.1]} 15... Re8 {[%clk 0:03:50.8]} 16. Qxc7 {[%clk
0:03:33.8]} 16... Ne7 {[%clk 0:03:44.1]} 17. Qxd6 {[%clk 0:03:30.5]} 17... Nh7
{[%clk 0:03:31.9]} 18. e5 {[%clk 0:03:24.2]} 18... Kg8 {[%clk 0:03:16.1]} 19.
Qd7 {[%clk 0:03:20.9]} 19... Kf8 {[%clk 0:03:13]} 20. d6 {[%clk 0:03:18]} 20...
Nc8 {[%clk 0:03:00.2]} 21. Qxf7# {[%clk 0:03:15.7]} 1-0

[Event "Live Chess"]
[Site "Chess.com"]
[Date "2024.06.01"]
[Round "-"]
[White "Bob2pen"]
[Black "KeithArkell"]
[Result "0-1"]
[WhiteElo "1857"]
[BlackElo "2515"]
[TimeControl "300"]
[EndTime "10:45:36 PDT"]
[Termination "KeithArkell won by resignation"]

1. c4 {[%clk 0:04:57.9]} 1... c5 {[%clk 0:04:58.6]} 2. g3 {[%clk 0:04:56.9]}
2... Nc6 {[%clk 0:04:57.7]} 3. Bg2 {[%clk 0:04:56.2]} 3... g6 {[%clk 0:04:57.4]}
4. Nf3 {[%clk 0:04:55.2]} 4... Bg7 {[%clk 0:04:57]} 5. O-O {[%clk 0:04:54.3]}
5... Nf6 {[%clk 0:04:56.6]} 6. Nc3 {[%clk 0:04:52.9]} 6... O-O {[%clk
0:04:55.8]} 7. e3 {[%clk 0:04:50.9]} 7... d6 {[%clk 0:04:53.6]} 8. d4 {[%clk
0:04:49.8]} 8... Bg4 {[%clk 0:04:52.6]} 9. d5 {[%clk 0:04:45.9]} 9... Ne5 {[%clk
0:04:51.7]} 10. Qe2 {[%clk 0:04:34.4]} 10... a6 {[%clk 0:04:49.3]} 11. h3 {[%clk
0:04:32.3]} 11... Nxf3+ {[%clk 0:04:48.1]} 12. Bxf3 {[%clk 0:04:28.7]} 12...
Bxh3 {[%clk 0:04:47.3]} 13. Rd1 {[%clk 0:04:18]} 13... Qd7 {[%clk 0:04:45.9]}
14. a3 {[%clk 0:04:15.3]} 14... Bg4 {[%clk 0:04:40.2]} 15. Rb1 {[%clk
0:04:12.9]} 15... Bxf3 {[%clk 0:04:39]} 16. Qxf3 {[%clk 0:04:11.4]} 16... Qf5
{[%clk 0:04:38.2]} 17. Qxf5 {[%clk 0:04:04.9]} 17... gxf5 {[%clk 0:04:38.1]} 18.
Ne2 {[%clk 0:04:01.8]} 18... b5 {[%clk 0:04:33.8]} 19. b3 {[%clk 0:03:58.2]}
19... Rab8 {[%clk 0:04:31.2]} 20. Bd2 {[%clk 0:03:54.1]} 20... Ne4 {[%clk
0:04:30.5]} 21. Be1 {[%clk 0:03:49.1]} 21... Rb7 {[%clk 0:04:28.7]} 22. f3
{[%clk 0:03:20.3]} 22... Ng5 {[%clk 0:04:23.9]} 23. Kg2 {[%clk 0:03:09.8]} 23...
bxc4 {[%clk 0:04:13.8]} 24. bxc4 {[%clk 0:03:07.5]} 24... Rfb8 {[%clk 0:04:13]}
25. Rxb7 {[%clk 0:03:00.1]} 25... Rxb7 {[%clk 0:04:12.9]} 26. Nc3 {[%clk
0:02:59]} 26... Rb2+ {[%clk 0:04:04.2]} 0-1

[Event "Live Chess"]
[Site "Chess.com"]
[Date "2024.06.01"]
[Round "-"]
[White "Grace6363"]
[Black "Colm_Buckley"]
[Result "0-1"]
[WhiteElo "1143"]
[BlackElo "1792"]
[TimeControl "300"]
[EndTime "10:45:38 PDT"]
[Termination "Colm_Buckley won by resignation"]

1. d4 {[%clk 0:04:57.3]} 1... e6 {[%clk 0:04:58.6]} 2. c4 {[%clk 0:04:56]} 2...
d5 {[%clk 0:04:58.1]} 3. Nf3 {[%clk 0:04:54.5]} 3... c6 {[%clk 0:04:56.7]} 4.
cxd5 {[%clk 0:04:53]} 4... exd5 {[%clk 0:04:55.7]} 5. a3 {[%clk 0:04:52.4]} 5...
Nf6 {[%clk 0:04:54.5]} 6. Bg5 {[%clk 0:04:50.7]} 6... Bf5 {[%clk 0:04:51.4]} 7.
e3 {[%clk 0:04:48.2]} 7... h6 {[%clk 0:04:49.7]} 8. Bh4 {[%clk 0:04:46.2]} 8...
Bd6 {[%clk 0:04:43.8]} 9. Nc3 {[%clk 0:04:42.4]} 9... O-O {[%clk 0:04:41.3]} 10.
Bd3 {[%clk 0:04:40.5]} 10... Bxd3 {[%clk 0:04:36.9]} 11. Qxd3 {[%clk 0:04:39.2]}
11... Nbd7 {[%clk 0:04:36.4]} 12. O-O {[%clk 0:04:37.4]} 12... Re8 {[%clk
0:04:32.9]} 13. Nd2 {[%clk 0:04:35.4]} 13... Qc7 {[%clk 0:04:29.4]} 14. g3
{[%clk 0:04:33.3]} 14... a5 {[%clk 0:04:20.1]} 15. Bxf6 {[%clk 0:04:31]} 15...
Nxf6 {[%clk 0:04:18.3]} 16. Qf5 {[%clk 0:04:17.3]} 16... Qe7 {[%clk 0:04:14.1]}
17. Nf3 {[%clk 0:04:08.9]} 17... Qe6 {[%clk 0:04:08.2]} 18. Qxe6 {[%clk
0:04:01.1]} 18... Rxe6 {[%clk 0:04:04.3]} 19. Ne2 {[%clk 0:03:59.2]} 19... Ne4
{[%clk 0:04:01.8]} 20. Nf4 {[%clk 0:03:52.7]} 20... Bxf4 {[%clk 0:03:59.6]} 21.
exf4 {[%clk 0:03:46]} 21... Rae8 {[%clk 0:03:57.1]} 22. Rae1 {[%clk 0:03:42.2]}
22... f6 {[%clk 0:03:51.3]} 23. h4 {[%clk 0:03:36.8]} 23... Kf7 {[%clk
0:03:48.3]} 24. Kg2 {[%clk 0:03:34.1]} 24... Nd6 {[%clk 0:03:45.4]} 25. g4
{[%clk 0:03:24.6]} 25... Nc4 {[%clk 0:03:36.5]} 26. Rxe6 {[%clk 0:03:20]} 26...
Rxe6 {[%clk 0:03:34.1]} 27. g5 {[%clk 0:03:14.6]} 27... hxg5 {[%clk 0:03:28.6]}
28. fxg5 {[%clk 0:03:11.1]} 28... Nxb2 {[%clk 0:03:25.9]} 29. gxf6 {[%clk
0:03:04.6]} 29... Kxf6 {[%clk 0:03:22.7]} 30. Ng5 {[%clk 0:02:59.2]} 30... Re2
{[%clk 0:03:17.6]} 31. Kf3 {[%clk 0:02:50.4]} 31... Rc2 {[%clk 0:03:11.5]} 32.
Re1 {[%clk 0:02:46.9]} 32... Nd3 {[%clk 0:03:00.6]} 33. Re6+ {[%clk 0:02:44.8]}
33... Kf5 {[%clk 0:02:59.3]} 34. Re2 {[%clk 0:02:29.1]} 34... Rxe2 {[%clk
0:02:55.8]} 35. Kxe2 {[%clk 0:02:28]} 35... Nf4+ {[%clk 0:02:52]} 36. Kf3 {[%clk
0:02:20.2]} 36... Ne6 {[%clk 0:02:49.5]} 37. Nxe6 {[%clk 0:02:09.3]} 37... Kxe6
{[%clk 0:02:48.4]} 38. Kf4 {[%clk 0:02:08.6]} 38... b6 {[%clk 0:02:45.8]} 39. h5
{[%clk 0:02:04.4]} 39... c5 {[%clk 0:02:43.8]} 40. Ke3 {[%clk 0:02:00.2]} 40...
Kf5 {[%clk 0:02:37.5]} 41. f4 {[%clk 0:01:52.1]} 41... c4 {[%clk 0:02:35.1]} 42.
a4 {[%clk 0:01:48.6]} 42... Kg4 {[%clk 0:02:30.4]} 43. f5 {[%clk 0:01:26]} 43...
Kxf5 {[%clk 0:02:27.6]} 44. Kf3 {[%clk 0:01:25.4]} 44... Kg5 {[%clk 0:02:25.8]}
45. Kg3 {[%clk 0:01:23.4]} 45... Kxh5 {[%clk 0:02:23.2]} 46. Kf4 {[%clk
0:01:22.8]} 46... g5+ {[%clk 0:02:19.7]} 47. Ke5 {[%clk 0:01:21.2]} 47... c3
{[%clk 0:02:18.7]} 48. Kxd5 {[%clk 0:01:19.2]} 48... c2 {[%clk 0:02:18.4]} 49.
Ke6 {[%clk 0:01:18]} 49... c1=Q {[%clk 0:02:17.7]} 50. d5 {[%clk 0:01:17.6]}
50... Qc8+ {[%clk 0:02:16.2]} 51. Kd6 {[%clk 0:01:16.1]} 51... Qd8+ {[%clk
0:02:15]} 0-1

[Event "Live Chess"]
[Site "Chess.com"]
[Date "2024.06.01"]
[Round "-"]
[White "Sacbutt"]
[Black "peteopeteo"]
[Result "1-0"]
[WhiteElo "2376"]
[BlackElo "1620"]
[TimeControl "300"]
[EndTime "10:45:46 PDT"]
[Termination "Sacbutt won by resignation"]

1. e4 {[%clk 0:04:57.1]} 1... c6 {[%clk 0:04:59.4]} 2. d4 {[%clk 0:04:55.5]}
2... d5 {[%clk 0:04:59]} 3. Nc3 {[%clk 0:04:55.1]} 3... dxe4 {[%clk 0:04:58.2]}
4. Nxe4 {[%clk 0:04:55]} 4... Nf6 {[%clk 0:04:57.8]} 5. Nxf6+ {[%clk 0:04:53.7]}
5... exf6 {[%clk 0:04:57.7]} 6. Nf3 {[%clk 0:04:53.2]} 6... Bg4 {[%clk
0:04:40.9]} 7. h3 {[%clk 0:04:50.8]} 7... Bh5 {[%clk 0:04:39.9]} 8. Be2 {[%clk
0:04:49.1]} 8... Bd6 {[%clk 0:04:36.7]} 9. O-O {[%clk 0:04:47.3]} 9... O-O
{[%clk 0:04:35.2]} 10. Be3 {[%clk 0:04:46.8]} 10... Nd7 {[%clk 0:04:33.3]} 11.
c4 {[%clk 0:04:46.2]} 11... b6 {[%clk 0:04:27.1]} 12. Qa4 {[%clk 0:04:40.6]}
12... Qc7 {[%clk 0:04:18]} 13. Rac1 {[%clk 0:04:33.8]} 13... c5 {[%clk
0:04:06.5]} 14. d5 {[%clk 0:04:28.3]} 14... Ne5 {[%clk 0:03:57.2]} 15. Qd1
{[%clk 0:03:59.8]} 15... Rfe8 {[%clk 0:03:19.1]} 16. b3 {[%clk 0:03:49.2]} 16...
a5 {[%clk 0:03:17.7]} 17. Re1 {[%clk 0:03:43.6]} 17... a4 {[%clk 0:03:16]} 18.
Rb1 {[%clk 0:03:34.8]} 18... axb3 {[%clk 0:03:14.4]} 19. Qxb3 {[%clk 0:03:33]}
19... Bxf3 {[%clk 0:03:10]} 20. Bxf3 {[%clk 0:03:23.7]} 20... Nxf3+ {[%clk
0:03:09.3]} 21. gxf3 {[%clk 0:03:23.6]} 21... Rab8 {[%clk 0:02:49.7]} 22. a4
{[%clk 0:03:07.1]} 22... Bf4 {[%clk 0:02:34.5]} 23. Kg2 {[%clk 0:02:57.3]} 23...
Qe5 {[%clk 0:02:28.9]} 24. h4 {[%clk 0:02:27.1]} 24... Qf5 {[%clk 0:02:24.8]}
25. Bxf4 {[%clk 0:01:40.6]} 25... Qxf4 {[%clk 0:02:18.9]} 26. Rxe8+ {[%clk
0:01:28.7]} 26... Rxe8 {[%clk 0:02:18.8]} 27. Qxb6 {[%clk 0:01:27.7]} 27... Qxh4
{[%clk 0:02:16.3]} 28. Qc7 {[%clk 0:01:15.5]} 28... Qg5+ {[%clk 0:01:57.3]} 29.
Qg3 {[%clk 0:01:10.2]} 29... Qxg3+ {[%clk 0:01:42]} 30. Kxg3 {[%clk 0:01:09.3]}
30... Ra8 {[%clk 0:01:32.4]} 31. Rb5 {[%clk 0:01:03.7]} 31... h6 {[%clk
0:01:31.3]} 32. a5 {[%clk 0:01:01.9]} 32... Rc8 {[%clk 0:01:29.2]} 33. a6 {[%clk
0:01:00.9]} 33... Kf8 {[%clk 0:01:28.1]} 34. a7 {[%clk 0:00:59.7]} 34... Ra8
{[%clk 0:01:22.9]} 35. Rb8+ {[%clk 0:00:58.3]} 1-0

[Event "Live Chess"]
[Site "Chess.com"]
[Date "2024.06.01"]
[Round "-"]
[White "MagnersCarlsberg2870"]
[Black "GEMdzq"]
[Result "1/2-1/2"]
[WhiteElo "1893"]
[BlackElo "2317"]
[TimeControl "300"]
[EndTime "10:45:47 PDT"]
[Termination "Game drawn by repetition"]

1. d4 {[%clk 0:04:56.7]} 1... Nf6 {[%clk 0:04:55.3]} 2. Nf3 {[%clk 0:04:54]}
2... e6 {[%clk 0:04:53.1]} 3. e3 {[%clk 0:04:50.6]} 3... c5 {[%clk 0:04:52.3]}
4. c3 {[%clk 0:04:49.6]} 4... Be7 {[%clk 0:04:50.2]} 5. Bd3 {[%clk 0:04:48.5]}
5... O-O {[%clk 0:04:49.5]} 6. Nbd2 {[%clk 0:04:47.7]} 6... Nc6 {[%clk
0:04:49.1]} 7. Qe2 {[%clk 0:04:46.8]} 7... d6 {[%clk 0:04:45.6]} 8. O-O {[%clk
0:04:45.4]} 8... b6 {[%clk 0:04:44.1]} 9. e4 {[%clk 0:04:41.5]} 9... cxd4 {[%clk
0:04:42]} 10. Nxd4 {[%clk 0:04:39.4]} 10... Bb7 {[%clk 0:04:38.7]} 11. Nxc6
{[%clk 0:04:35.7]} 11... Bxc6 {[%clk 0:04:37.9]} 12. Nf3 {[%clk 0:04:29.3]}
12... Qc7 {[%clk 0:04:27.1]} 13. Nd4 {[%clk 0:04:27.6]} 13... Bb7 {[%clk
0:04:22.6]} 14. Bg5 {[%clk 0:04:25.1]} 14... h6 {[%clk 0:04:18.6]} 15. Bxf6
{[%clk 0:04:23.7]} 15... Bxf6 {[%clk 0:04:18.1]} 16. f4 {[%clk 0:04:21.2]} 16...
Rac8 {[%clk 0:04:07.1]} 17. Rf3 {[%clk 0:04:19.7]} 17... Qc5 {[%clk 0:04:04.5]}
18. Rd1 {[%clk 0:04:03.8]} 18... e5 {[%clk 0:03:26.5]} 19. fxe5 {[%clk
0:03:58.6]} 19... dxe5 {[%clk 0:03:23.1]} 20. Rxf6 {[%clk 0:03:57.6]} 20... gxf6
{[%clk 0:03:21]} 21. Qg4+ {[%clk 0:03:56.7]} 21... Kh7 {[%clk 0:02:56.5]} 22.
Qf5+ {[%clk 0:03:55.2]} 22... Kh8 {[%clk 0:02:55.1]} 23. Qh5 {[%clk 0:03:53.3]}
23... Kg7 {[%clk 0:02:53.1]} 24. Qg4+ {[%clk 0:03:51.4]} 24... Kh7 {[%clk
0:02:51.5]} 25. Qf5+ {[%clk 0:03:50.3]} 25... Kh8 {[%clk 0:02:47.9]} 26. Qh5
{[%clk 0:03:49.4]} 26... Kg7 {[%clk 0:02:46.6]} 27. Qg4+ {[%clk 0:03:48.1]}
27... Kh7 {[%clk 0:02:45.5]} 1/2-1/2

[Event "Live Chess"]
[Site "Chess.com"]
[Date "2024.06.01"]
[Round "-"]
[White "chessfiction"]
[Black "FMOlexandrProhorov"]
[Result "0-1"]
[WhiteElo "2411"]
[BlackElo "2360"]
[TimeControl "300"]
[EndTime "10:45:54 PDT"]
[Termination "FMOlexandrProhorov won by resignation"]

1. e4 {[%clk 0:04:57.4]} 1... c5 {[%clk 0:04:59.6]} 2. Nf3 {[%clk 0:04:52.9]}
2... e6 {[%clk 0:04:59.5]} 3. c3 {[%clk 0:04:50.3]} 3... Nf6 {[%clk 0:04:58.2]}
4. e5 {[%clk 0:04:48.6]} 4... Nd5 {[%clk 0:04:57.7]} 5. d4 {[%clk 0:04:48.5]}
5... cxd4 {[%clk 0:04:54.5]} 6. cxd4 {[%clk 0:04:48.4]} 6... d6 {[%clk
0:04:53.2]} 7. Bd3 {[%clk 0:04:47.9]} 7... Nc6 {[%clk 0:04:50.8]} 8. exd6 {[%clk
0:04:45.8]} 8... Qxd6 {[%clk 0:04:47.7]} 9. Nc3 {[%clk 0:04:45.2]} 9... Be7
{[%clk 0:04:47]} 10. Ne4 {[%clk 0:04:44.1]} 10... Qd8 {[%clk 0:04:45.7]} 11. Bd2
{[%clk 0:04:43.6]} 11... O-O {[%clk 0:04:44.8]} 12. Qe2 {[%clk 0:04:42]} 12...
Ndb4 {[%clk 0:04:32.9]} 13. Bb1 {[%clk 0:04:39.6]} 13... Nxd4 {[%clk 0:04:26.4]}
14. Nxd4 {[%clk 0:04:37.8]} 14... Qxd4 {[%clk 0:04:26.3]} 15. Bc3 {[%clk
0:04:34.3]} 15... Qb6 {[%clk 0:04:15.7]} 16. Qh5 {[%clk 0:03:18.1]} 16... h6
{[%clk 0:04:03.2]} 17. g4 {[%clk 0:03:06.5]} 17... Nd5 {[%clk 0:03:55.3]} 18.
Bxg7 {[%clk 0:02:52.6]} 18... Kxg7 {[%clk 0:03:51.2]} 19. g5 {[%clk 0:02:51.3]}
19... Rh8 {[%clk 0:03:34.3]} 20. gxh6+ {[%clk 0:02:43.9]} 20... Kf8 {[%clk
0:03:32.2]} 21. Ng5 {[%clk 0:02:35.4]} 21... Qb4+ {[%clk 0:03:19.5]} 22. Kf1
{[%clk 0:02:21.1]} 22... Qc4+ {[%clk 0:03:18]} 23. Kg2 {[%clk 0:02:10.6]} 23...
Nf4+ {[%clk 0:03:12.3]} 0-1

[Event "Live Chess"]
[Site "Chess.com"]
[Date "2024.06.01"]
[Round "-"]
[White "Ksenia_2013"]
[Black "seasidecastle27"]
[Result "0-1"]
[WhiteElo "768"]
[BlackElo "1950"]
[TimeControl "300"]
[EndTime "10:46:11 PDT"]
[Termination "seasidecastle27 won by checkmate"]

1. e4 {[%clk 0:04:58.7]} 1... e6 {[%clk 0:04:58.8]} 2. e5 {[%clk 0:04:56.6]}
2... d5 {[%clk 0:04:57.3]} 3. exd6 {[%clk 0:04:54.4]} 3... cxd6 {[%clk
0:04:55.8]} 4. Nf3 {[%clk 0:04:47.9]} 4... Nf6 {[%clk 0:04:54.3]} 5. Bc4 {[%clk
0:04:44.5]} 5... d5 {[%clk 0:04:52]} 6. Bb5+ {[%clk 0:04:42.4]} 6... Nc6 {[%clk
0:04:50.6]} 7. O-O {[%clk 0:04:38]} 7... Bd6 {[%clk 0:04:47.3]} 8. Nc3 {[%clk
0:04:34.2]} 8... O-O {[%clk 0:04:45.6]} 9. Ng5 {[%clk 0:04:30.5]} 9... e5 {[%clk
0:04:41.4]} 10. Bd3 {[%clk 0:04:29]} 10... e4 {[%clk 0:04:39.3]} 11. Ncxe4
{[%clk 0:04:26.5]} 11... dxe4 {[%clk 0:04:36.5]} 12. Bxe4 {[%clk 0:04:24]} 12...
Nxe4 {[%clk 0:04:24.6]} 13. Nxe4 {[%clk 0:04:20.5]} 13... Bc7 {[%clk 0:04:22.6]}
14. d3 {[%clk 0:04:17]} 14... Bf5 {[%clk 0:04:18.8]} 15. Ng5 {[%clk 0:04:14.2]}
15... Qd6 {[%clk 0:04:14.9]} 16. Qh5 {[%clk 0:04:06.1]} 16... Bg6 {[%clk
0:04:12.2]} 17. Qh3 {[%clk 0:03:57.7]} 17... Nd4 {[%clk 0:03:59]} 18. Qh4 {[%clk
0:03:48.5]} 18... Ne2+ {[%clk 0:03:48.3]} 19. Kh1 {[%clk 0:03:45.7]} 19... Nxc1
{[%clk 0:03:43.3]} 20. Raxc1 {[%clk 0:03:40.9]} 20... Rfe8 {[%clk 0:03:40.8]}
21. f4 {[%clk 0:03:34.4]} 21... f5 {[%clk 0:03:31.3]} 22. Rfe1 {[%clk 0:03:28]}
22... Qxf4 {[%clk 0:03:20.9]} 23. Rxe8+ {[%clk 0:03:25.4]} 23... Rxe8 {[%clk
0:03:18.1]} 24. Re1 {[%clk 0:03:17.1]} 24... Qxh4 {[%clk 0:03:12.1]} 25. Rxe8+
{[%clk 0:03:13.3]} 25... Bxe8 {[%clk 0:03:10.5]} 26. Ne6 {[%clk 0:03:09.1]}
26... Qxh2# {[%clk 0:03:07.8]} 0-1

[Event "Live Chess"]
[Site "Chess.com"]
[Date "2024.06.01"]
[Round "-"]
[White "Ferrarifan27"]
[Black "Nazar-Makarchuk"]
[Result "1-0"]
[WhiteElo "2101"]
[BlackElo "1561"]
[TimeControl "300"]
[EndTime "10:46:12 PDT"]
[Termination "Ferrarifan27 won by resignation"]

1. e4 {[%clk 0:04:59.1]} 1... d5 {[%clk 0:04:59]} 2. exd5 {[%clk 0:04:57.7]}
2... Nf6 {[%clk 0:04:57.9]} 3. d4 {[%clk 0:04:56.3]} 3... Qxd5 {[%clk
0:04:56.6]} 4. Nc3 {[%clk 0:04:54.5]} 4... Qd8 {[%clk 0:04:55.2]} 5. Nf3 {[%clk
0:04:51.5]} 5... e6 {[%clk 0:04:54.7]} 6. Bg5 {[%clk 0:04:47.5]} 6... Be7 {[%clk
0:04:53]} 7. Bd3 {[%clk 0:04:45.5]} 7... c5 {[%clk 0:04:52.1]} 8. dxc5 {[%clk
0:04:43.9]} 8... Bxc5 {[%clk 0:04:50.7]} 9. O-O {[%clk 0:04:40.6]} 9... Be7
{[%clk 0:04:49.8]} 10. Qe2 {[%clk 0:04:35.8]} 10... Nc6 {[%clk 0:04:48.5]} 11.
Rad1 {[%clk 0:04:34.9]} 11... Qc7 {[%clk 0:04:36.9]} 12. Nb5 {[%clk 0:04:30.5]}
12... Qb6 {[%clk 0:04:31.7]} 13. Bf4 {[%clk 0:04:26]} 13... O-O {[%clk
0:04:27.8]} 14. Nc7 {[%clk 0:04:16.2]} 14... Bd7 {[%clk 0:04:19.8]} 15. Nxa8
{[%clk 0:04:13.6]} 15... Rxa8 {[%clk 0:04:19.2]} 16. c3 {[%clk 0:04:12.8]} 16...
Be8 {[%clk 0:04:14.6]} 17. Bb1 {[%clk 0:03:58.3]} 17... Nd5 {[%clk 0:04:13.9]}
18. Bg3 {[%clk 0:03:53.8]} 18... Qd8 {[%clk 0:04:10.7]} 19. c4 {[%clk
0:03:50.6]} 1-0